[Event "Niedersachsen-ch A 2024"]
[Site "Verden Aller"]
[Date "2024.01.07"]
[Round "7.33"]
[White "Kozik, Andreas"]
[Black "Moerke, Niklas"]
[Result "1/2-1/2"]
[ECO "D00"]
[WhiteElo "1912"]
[BlackElo "1800"]
[Annotator "RC"]
[PlyCount "109"]
[EventDate "2024.01.01"]
[EventType "swiss"]
[EventCountry "GER"]
[SourceTitle "playchess.com"]
[Source "ChessBase"]
[SourceQuality "1"]
[TimeControl "40/5400+30:1800+30"]

1. d4 {[%emt 0:00:01]} d5 {[%emt 0:00:05]} 2. Bf4 {[%emt 0:00:07]} Bf5 {[%emt 0:00:47]} 3. e3 {[%emt 0:00:17]} Nf6 {[%emt 0:00:56]} 4. c4 {[%emt 0:02:33]} e6 {[%emt 0:00:13]} 5. Nc3 {[%emt 0:00:17]} Nbd7 {[%emt 0:04:25]} 6. Qb3 {[%emt 0:03:39]} dxc4 {[%emt 0:03:01]} 7. Bxc4 {[%emt 0:02:45]} Nb6 {[%emt 0:01:22]} 8. Be2 {[%emt 0:10:51]} Nfd5 {[%emt 0:03:06]} 9. Bg3 {[%emt 0:15:33]} Nxc3 {[%emt 0:02:18]} 10. bxc3 {[%emt 0:00:24]} Bd6 {[%emt 0:01:15]} 11. Nf3 {[%emt 0:00:07]} O-O {[%emt 0:01:01]} 12. O-O {[%emt 0:05:37]} Bxg3 {[%emt 0:01:13]} 13. hxg3 {[%emt 0:00:07]} Rc8 {[%emt 0:00:50]} 14. Rfd1 {[%emt 0:03:38]} h6 {[%emt 0:01:39]} 15. a4 {[%emt 0:02:40]} a5 {[%emt 0:03:03]} 16. Ne5 {[%emt 0:15:44]} Qe7 {[%emt 0:02:42]} 17. Bd3 {[%emt 0:00:55]} Bxd3 {[%emt 0:06:50]} 18. Nxd3 {[%emt 0:00:08]} Rb8 {[%emt 0:05:20]} 19. c4 {[%emt 0:05:37]} Nd7 {[%emt 0:01:13]} 20. c5 {[%emt 0:05:48]} b6 {[%emt 0:01:08]} 21. cxb6 {[%emt 0:00:25]} cxb6 {[%emt 0:01:16]} 22. Rac1 {[%emt 0:01:24]} Rfc8 {[%emt 0:01:00]} 23. Rc3 {[%emt 0:01:26]} Rxc3 {[%emt 0:00:33]} 24. Qxc3 {[%emt 0:00:05]} Nf6 {[%emt 0:00:21]} 25. Qb3 {[%emt 0:00:44]} Qd6 {[%emt 0:04:10]} 26. Rc1 {[%emt 0:00:21]} Rb7 {[%emt 0:01:51]} 27. Rc8+ {[%emt 0:02:09]} Kh7 {[%emt 0:00:05]} 28. Qc2 {[%emt 0:01:03]} g6 {[%emt 0:00:25]} 29. Ne5 {[%emt 0:01:04]} Kg7 {[%emt 0:02:23]} 30. Rc6 {[%emt 0:01:27]} Qe7 {[%emt 0:01:48]} 31. Nc4 {[%emt 0:03:50]} Nd5 {[%emt 0:01:33]} 32. Rc8 {[%emt 0:02:51]} Rc7 {[%emt 0:04:06]} 33. Rxc7 {[%emt 0:00:20]} Qxc7 {[%emt 0:00:30]} 34. Qb3 {[%emt 0:00:48]} Nb4 {[%emt 0:02:17]} 35. Kh2 {[%emt 0:00:35]} h5 {[%emt 0:01:30]} 36. Kg1 {[%emt 0:01:21]} Qc6 {[%emt 0:00:57]} 37. Kh2 {[%emt 0:02:00]} Qd5 {[%emt 0:01:30]} 38. Qc3 {[%emt 0:01:29]} Na2 {[%emt 0:06:57]} 39. Qc2 {[%emt 0:00:58]} b5 {[%emt 0:03:40]} 40. axb5 {[%emt 0:00:21]} Nb4 {[%emt 0:00:30]} 41. Qc3 {[%emt 0:33:36]} Qxb5 {[%emt 0:37:48]} 42. d5+ {[%emt 0:00:40]} Kh7 {[%emt 0:00:21]} 43. dxe6 {[%emt 0:04:15]} fxe6 {[%emt 0:00:39]} 44. Nd6 {[%emt 0:00:00]} Qc6 {[%emt 0:00:00]} 45. Qe5 {[%emt 0:00:00]} Qd5 {[%emt 0:00:00]} 46. Qf4 {[%emt 0:00:00]} e5 {[%emt 0:00:00]} 47. Qf6 {[%emt 0:00:00]} Qg8 {[%emt 0:00:00]} 48. Ne4 {[%emt 0:00:00]} Qg7 {[%emt 0:00:00]} 49. Ng5+ {[%emt 0:00:00]} Kh6 {[%emt 0:00:00]} 50. Nf7+ {[%emt 0:01:24]} Kh7 {[%emt 0:00:00]} 51. Ng5+ {[%emt 0:01:53]} Kh6 {[%emt 0:00:00]} 52. Nf7+ {[%emt 0:01:07]} Kh7 {[%emt 0:00:00]} 53. Ng5+ {[%emt 0:00:04]} Kh6 {[%emt 0:00:00]} 54. Nf7+ {[%emt 0:00:05]} Kh7 {[%emt 0:00:00]} 55. Ng5+ {[%emt 0:00:06]} 1/2-1/2

[Event "Niedersachsen-ch A 2024"]
[Site "Verden Aller"]
[Date "2024.01.07"]
[Round "7.35"]
[White "Behn, Cord"]
[Black "Tenne, Fabian"]
[Result "1/2-1/2"]
[ECO "A27"]
[WhiteElo "1837"]
[BlackElo "1817"]
[Annotator "NA RC"]
[PlyCount "23"]
[EventDate "2024.01.01"]
[EventType "swiss"]
[EventCountry "GER"]
[SourceTitle "playchess.com"]
[Source "ChessBase"]
[SourceQuality "1"]
[TimeControl "40/5400+30:1800+30"]

1. c4 {[%emt 0:00:03]} e5 {[%emt 0:17:15]} 2. Nc3 {[%emt 0:00:08]} Bc5 {[%emt 0:01:04]} 3. e3 {[%emt 0:01:05]} Nc6 {[%emt 0:03:12]} 4. Nf3 {[%emt 0:01:33]} Nf6 {[%emt 0:08:33]} 5. d4 {[%emt 0:05:07]} exd4 {[%emt 0:02:38]} 6. exd4 {[%emt 0:04:39]} Qe7+ {[%emt 0:00:19]} 7. Be2 {[%emt 0:00:40]} Bb4 {[%emt 0:00:11]} 8. Bd2 {[%emt 0:02:27]} d6 {[%emt 0:02:39]} 9. O-O {[%emt 0:00:58]} O-O {[%emt 0:00:22]} 10. Re1 {[%emt 0:01:00]} Bg4 {[%emt 0:00:30]} 11. a3 {[%emt 0:22:24]} Bxc3 {[%emt 0:04:45]} 12. Bxc3 {[%emt 0:56:26]} 1/2-1/2

[Event "Niedersachsen-ch A 2024"]
[Site "Verden Aller"]
[Date "2024.01.07"]
[Round "7.36"]
[White "Poelig, Juergen"]
[Black "Trunz, Tamila"]
[Result "1-0"]
[ECO "A08"]
[WhiteElo "1819"]
[BlackElo "1766"]
[Annotator "NA RC"]
[PlyCount "87"]
[EventDate "2024.01.01"]
[EventType "swiss"]
[EventCountry "GER"]
[SourceTitle "playchess.com"]
[Source "ChessBase"]
[SourceQuality "1"]
[TimeControl "40/5400+30:1800+30"]

1. e4 {[%emt 0:00:04]} c5 {[%emt 0:00:04]} 2. Nf3 {[%emt 0:00:06]} e6 {[%emt 0:00:04]} 3. d3 {[%emt 0:00:13]} Nc6 {[%emt 0:02:03]} 4. g3 {[%emt 0:00:17]} g6 {[%emt 0:11:03]} 5. Bg2 {[%emt 0:00:18]} Bg7 {[%emt 0:00:43]} 6. O-O {[%emt 0:00:10]} Nge7 {[%emt 0:01:36]} 7. c3 {[%emt 0:00:20]} O-O {[%emt 0:04:36]} 8. Re1 {[%emt 0:01:55]} d5 {[%emt 0:12:07]} 9. Nbd2 {[%emt 0:00:17]} b6 {[%emt 0:01:43]} 10. Qc2 {[%emt 0:06:30]} Bb7 {[%emt 0:03:00]} 11. Nf1 {[%emt 0:03:11]} Rc8 {[%emt 0:00:57]} 12. h4 {[%emt 0:17:10]} Qd7 {[%emt 0:06:54]} 13. N1h2 {[%emt 0:03:18]} f5 {[%emt 0:08:53]} 14. e5 {[%emt 0:03:54]} d4 {[%emt 0:08:00]} 15. c4 {[%emt 0:07:14]} b5 {[%emt 0:00:39]} 16. b3 {[%emt 0:06:47]} Nb4 {[%emt 0:01:15]} 17. Qe2 {[%emt 0:00:57]} bxc4 {[%emt 0:00:26]} 18. bxc4 {[%emt 0:00:10]} Bc6 {[%emt 0:07:09]} 19. a3 {[%emt 0:01:12]} Na6 {[%emt 0:00:17]} 20. Bf4 {[%emt 0:01:00]} Nc7 {[%emt 0:05:48]} 21. Qd2 {[%emt 0:03:46]} Na8 {[%emt 0:02:02]} 22. Bh6 {[%emt 0:04:48]} Nb6 {[%emt 0:01:00]} 23. h5 {[%emt 0:01:18]} Na4 {[%emt 0:02:12]} 24. Nh4 {[%emt 0:03:10]} Bxg2 {[%emt 0:00:36]} 25. Kxg2 {[%emt 0:00:50]} Nc3 {[%emt 0:04:22]} 26. N2f3 {[%emt 0:04:15]} Rb8 {[%emt 0:04:55]} 27. Rh1 {[%emt 0:02:33]} Qe8 {[%emt 0:01:07]} 28. hxg6 {[%emt 0:00:59]} Nxg6 {[%emt 0:01:30]} 29. Bxg7 {[%emt 0:07:21]} Kxg7 {[%emt 0:00:09]} 30. Qh6+ {[%emt 0:04:21]} Kg8 {[%emt 0:00:08]} 31. Ng5 {[%emt 0:00:59]} Rb7 {[%emt 0:00:44]} 32. Nxg6 {[%emt 0:03:29]} Qxg6 {[%emt 0:00:19]} 33. Qxg6+ {[%emt 0:00:32]} hxg6 {[%emt 0:00:04]} 34. Nxe6 {[%emt 0:00:48]} Rc8 {[%emt 0:02:08]} 35. Rh6 {[%emt 0:02:45]} Nb1 {[%emt 0:02:12]} 36. Rxg6+ {[%emt 0:01:23]} Kh7 {[%emt 0:00:12]} 37. Rf6 {[%emt 0:00:42]} Rb3 {[%emt 0:03:49]} 38. Nf4 {[%emt 0:00:58]} a5 {[%emt 0:02:20]} 39. Ra6 {[%emt 0:01:55]} Nxa3 {[%emt 0:00:35]} 40. Rxa5 {[%emt 0:00:24]} Nc2 {[%emt 0:01:00]} 41. Rh1+ {[%emt 0:30:20]} Kg8 {[%emt 0:30:32]} 42. Ra7 {[%emt 0:07:40]} Rb2 {[%emt 0:00:00]} 43. Ng6 {[%emt 0:00:00]} Ne3+ {[%emt 0:00:00]} 44. Kf3 {[%emt 0:00:00]} 1-0